{"text_format":"1","workbook":"xlsx","n_sheets":7,"sheets":["Instructions","Data Entry Sheet","Sheet2","Sheet1","Sort Sheet","Sort Sheet by Div","Sheet3"],"not_rendered":{"charts":0,"images":0,"macros":1,"external_links":0,"defined_names":2,"comments":0,"pivot_tables":0},"unopened":[],"bounds":{"document_bytes":16777216,"sheet_cells":100000,"rows_first":2000,"rows_last":500,"rows_between":2000,"halvings":0,"cell_chars":16384,"cell_head_chars":4096},"cells_cut":0,"cells_raw":0,"read":"whole","date_system":"1900"}

{"sheet":"Instructions","index":0,"n_rows":19,"n_cols":1,"rows_kept":19,"cut":false,"hidden":false,"merged":[]}
["1) Double check data on scoresheet"]
["2)  Fill out all white cells - do not leave any blank as data is required for assessing achievements earned and in case a tie breaker is needed"]
["For the MISSES column - do not leave blank or it will not sort correctly - if there were no misses it should say 0"]
["If no UDT # ensure full names are used for handler and proper spelling for dog"]
["To determine placements:"]
["3) Go to sort sheet, place cursor in yellow box, press button to sort"]
["4) The sheet is sorted by tie breaker criteria"]
["If need be a clear data button is available in the total column to clear the sort sheet of previous data"]
[]
[]
["Do not rearrange any columns or delete any example rows."]
["Save this form as the Event name, date, game (Example:  PlantCity2-8-15FourWayPlay)"]
["Email to results@updogchallenge.com within 10 days of event"]
[]
["In the event of a tie, the following criteria will be used to determine placements: The team with the most"]
["4 point zones completed wins, then the team with the most 3 point zones complete, 2 point zones, and then 1 point"]
["zones. If all of the above criteria is identical, the team with the fewest misses wins. If the tie is still not broken, the two"]
["teams will each receive an additional 15 second round to score as many points as possible. A disc flip will determine"]
["which goes first. The team with the highest score after the 15 second round wins the tiebreaker."]

{"sheet":"Data Entry Sheet","index":1,"n_rows":300,"n_cols":16,"rows_kept":300,"cut":false,"hidden":false,"merged":[[0,0,0,13]]}
["Four Way Play Data Entry"]
["Level ","Handler (First and Last Name)","Dog","UDT #\n(this is the UpDog Team # not the competitor #)","# of Catches in 1 point zone","# of Catches in 2 point zone","# of Catches in 3 point zone","# of Catches in 4 point zone","Total for Zones","Total Quads Cleared","Did the handler, dog and 1 disc end in the Sweet Spot, Y or N?","Total","Were all throws thrown as Rollers           Y or N?","High Roller","Division","Misses"]
[1,"Example","Uppy D",null,2,2,2,3,{"$f":"SUM(E3*1)+(F3*2)+(G3*3)+(H3*4)","v":24},{"$f":"IF(I3<10,0,IF(I3<20,1,IF(I3<30,2,IF(I3<40,3,IF(I3<50,4,IF(I3<60,5,IF(I3>=60,6)))))))","v":2},"Y",{"$f":"SUM(E3*1)+(F3*2)+(G3*3)+(H3*4)+IF(K3=\"Y\",2,IF(K3=\"N\",0))","v":26},"N",{"$f":"IF(AND(L3>15,M3=\"Y\"),\"Yes\",\"No\")","v":"No"},"MIDI",3]
[1,"Tracy Love","Rhythm","T10175199",1,1,2,2,{"$f":"SUM(E4*1)+(F4*2)+(G4*3)+(H4*4)","v":17},{"$f":"IF(I4<10,0,IF(I4<20,1,IF(I4<30,2,IF(I4<40,3,IF(I4<50,4,IF(I4<60,5,IF(I4>=60,6)))))))","v":1},"N",17,"N","No",null,1]
[1,"Jeff Love","Rhapsody","T13736205",0,0,0,1,4,0,"N",4,"N","No",null,7]
[1,"Lindsay Thompson","Moxie","T27199235",1,1,2,2,17,1,"N",17,"N","No",null,4]
[1,"Marisa Finan-Goode","Kite","T21413223",2,2,2,1,16,1,"N",16,"N","No",null,3]
[1,"Finn Proctor","Rumor","T29480237",1,1,1,0,6,0,"Y",8,"Y","No",null,3]
[1,"Frank Montgomery","Jagger","T2009152",3,3,3,3,30,3,"N",30,"N","No",null,0]
[1,"Silver Alfriker","Bisha","T26466233",1,1,1,1,10,1,"N",10,"N","No",null,2]
[1,"Finn Proctor","Tango","T30544231",2,2,1,2,17,1,"Y",19,"N","No",null,7]
[1,"Tammy Bonas","Tac","T2832181",2,1,1,2,15,1,"N",15,"N","No",null,2]
[1,"Finn Proctor","Figment","T29479233",1,0,0,0,1,0,"N",1,"N","No",null,2]
[1,"Sam Marion","GIR","T20779220",2,1,2,2,18,1,"N",18,"N","No",null,4]
[1,"Tammy Bonas","Bo","T26447235",1,1,1,1,10,1,"Y",12,"N","No",null,1]
[1,"Tara Moriarty","Draak","T29481235",1,1,1,1,10,1,"Y",12,"Y","No",null,1]
[1,"Sam Marion","Josie","T10565197",0,1,0,1,6,0,"Y",8,"N","No",null,5]
[1,"Rachel Hoar","Nacho","T16237214",0,0,1,1,7,0,"N",7,"N","No",null,6]
[1,"Lindsay Thompson","Banksy","T10071197",0,0,1,1,7,0,"N",7,"N","No",null,5]
[1,"Ashley Rogers","Oakley","T30961243",2,1,1,2,15,1,"N",15,"N","No",null,1]
[1,null,null,null,null,null,null,null,0,0,null,0,null,"No",null,0]
[1,null,null,null,null,null,null,null,0,0,null,0,null,"No",null,0]
[1,null,null,null,null,null,null,null,0,0,null,0,null,"No",null,0]
[1,null,null,null,null,null,null,null,0,0,null,0,null,"No",null,0]
[1,null,null,null,null,null,null,null,0,0,null,0,null,"No",null,0]
[1,null,null,null,null,null,null,null,0,0,null,0,null,"No",null,0]
[1,null,null,null,null,null,null,null,0,0,null,0,null,"No",null,0]
[1,null,null,null,null,null,null,null,0,0,null,0,null,"No",null,0]
[1,null,null,null,null,null,null,null,0,0,null,0,null,"No",null,0]
[1,null,null,null,null,null,null,null,0,0,null,0,null,"No",null,0]
[1,null,null,null,null,null,null,null,0,0,null,0,null,"No",null,0]
[1,null,null,null,null,null,null,null,0,0,null,0,null,"No",null,0]
[1,null,null,null,null,null,null,null,0,0,null,0,null,"No",null,0]
[1,null,null,null,null,null,null,null,0,0,null,0,null,"No",null,0]
[1,null,null,null,null,null,null,null,0,0,null,0,null,"No",null,0]
[1,null,null,null,null,null,null,null,0,0,null,0,null,"No",null,0]
[1,null,null,null,null,null,null,null,0,0,null,0,null,"No",null,0]
[1,null,null,null,null,null,null,null,0,0,null,0,null,"No",null,0]
[1,null,null,null,null,null,null,null,0,0,null,0,null,"No",null,0]
[1,null,null,null,null,null,null,null,0,0,null,0,null,"No",null,0]
[1,null,null,null,null,null,null,null,0,0,null,0,null,"No",null,0]
[1,null,null,null,null,null,null,null,0,0,null,0,null,"No",null,0]
[1,null,null,null,null,null,null,null,0,0,null,0,null,"No",null,0]
[1,null,null,null,null,null,null,null,0,0,null,0,null,"No",null,0]
[1,null,null,null,null,null,null,null,0,0,null,0,null,"No",null,0]
[1,null,null,null,null,null,null,null,0,0,null,0,null,"No",null,0]
[1,null,null,null,null,null,null,null,0,0,null,0,null,"No",null,0]
[1,null,null,null,null,null,null,null,0,0,null,0,null,"No",null,0]
[1,null,null,null,null,null,null,null,0,0,null,0,null,"No",null,0]
[1,null,null,null,null,null,null,null,0,0,null,0,null,"No",null,0]
[1,null,null,null,null,null,null,null,0,0,null,0,null,"No",null,0]
[1,null,null,null,null,null,null,null,0,0,null,0,null,"No",null,0]
[1,null,null,null,null,null,null,null,0,0,null,0,null,"No",null,0]
[1,null,null,null,null,null,null,null,0,0,null,0,null,"No",null,0]
[1,null,null,null,null,null,null,null,0,0,null,0,null,"No",null,0]
[1,null,null,null,null,null,null,null,0,0,null,0,null,"No",null,0]
[1,null,null,null,null,null,null,null,0,0,null,0,null,"No",null,0]
[1,null,null,null,null,null,null,null,0,0,null,0,null,"No",null,0]
[1,null,null,null,null,null,null,null,0,0,null,0,null,"No",null,0]
[1,null,null,null,null,null,null,null,0,0,null,0,null,"No",null,0]
[1,null,null,null,null,null,null,null,0,0,null,0,null,"No",null,0]
[1,null,null,null,null,null,null,null,0,0,null,0,null,"No",null,0]
[1,null,null,null,null,null,null,null,0,0,null,0,null,"No",null,0]
[1,null,null,null,null,null,null,null,0,0,null,0,null,"No",null,0]
[1,null,null,null,null,null,null,null,0,0,null,0,null,"No",null,0]
[1,null,null,null,null,null,null,null,0,0,null,0,null,"No",null,0]
[1,null,null,null,null,null,null,null,0,0,null,{"$f":"SUM(E67*1)+(F67*2)+(G67*3)+(H67*4)+IF(K67=\"Y\",2,IF(K67=\"N\",0))","v":0},null,{"$f":"IF(AND(L67>15,M67=\"Y\"),\"Yes\",\"No\")","v":"No"},null,0]
[1,null,null,null,null,null,null,null,{"$f":"SUM(E68*1)+(F68*2)+(G68*3)+(H68*4)","v":0},{"$f":"IF(I68<10,0,IF(I68<20,1,IF(I68<30,2,IF(I68<40,3,IF(I68<50,4,IF(I68<60,5,IF(I68>=60,6)))))))","v":0},null,0,null,"No",null,0]
[1,null,null,null,null,null,null,null,0,0,null,0,null,"No",null,0]
[1,null,null,null,null,null,null,null,0,0,null,0,null,"No",null,0]
[1,null,null,null,null,null,null,null,0,0,null,0,null,"No",null,0]
[1,null,null,null,null,null,null,null,0,0,null,0,null,"No",null,0]
[1,null,null,null,null,null,null,null,0,0,null,0,null,"No",null,0]
[1,null,null,null,null,null,null,null,0,0,null,0,null,"No",null,0]
[1,null,null,null,null,null,null,null,0,0,null,0,null,"No",null,0]
[1,null,null,null,null,null,null,null,0,0,null,0,null,"No",null,0]
[1,null,null,null,null,null,null,null,0,0,null,0,null,"No",null,0]
[1,null,null,null,null,null,null,null,0,0,null,0,null,"No",null,0]
[1,null,null,null,null,null,null,null,0,0,null,0,null,"No",null,0]
[1,null,null,null,null,null,null,null,0,0,null,0,null,"No",null,0]
[1,null,null,null,null,null,null,null,0,0,null,0,null,"No",null,0]
[1,null,null,null,null,null,null,null,0,0,null,0,null,"No",null,0]
[1,null,null,null,null,null,null,null,0,0,null,0,null,"No",null,0]
[1,null,null,null,null,null,null,null,0,0,null,0,null,"No",null,0]
[1,null,null,null,null,null,null,null,0,0,null,0,null,"No",null,0]
[1,null,null,null,null,null,null,null,0,0,null,0,null,"No",null,0]
[1,null,null,null,null,null,null,null,0,0,null,0,null,"No",null,0]
[1,null,null,null,null,null,null,null,0,0,null,0,null,"No",null,0]
[1,null,null,null,null,null,null,null,0,0,null,0,null,"No",null,0]
[1,null,null,null,null,null,null,null,0,0,null,0,null,"No",null,0]
[1,null,null,null,null,null,null,null,0,0,null,0,null,"No",null,0]
[1,null,null,null,null,null,null,null,0,0,null,0,null,"No",null,0]
[1,null,null,null,null,null,null,null,0,0,null,0,null,"No",null,0]
[1,null,null,null,null,null,null,null,0,0,null,0,null,"No",null,0]
[1,null,null,null,null,null,null,null,0,0,null,0,null,"No",null,0]
[1,null,null,null,null,null,null,null,0,0,null,0,null,"No",null,0]
[1,null,null,null,null,null,null,null,0,0,null,0,null,"No",null,0]
[1,null,null,null,null,null,null,null,0,0,null,0,null,"No",null,0]
[1,null,null,null,null,null,null,null,0,0,null,0,null,"No",null,0]
[1,null,null,null,null,null,null,null,0,0,null,0,null,"No",null,0]
[1,null,null,null,null,null,null,null,0,0,null,0,null,"No",null,0]
[1,null,null,null,null,null,null,null,{"$f":"SUM(E102*1)+(F102*2)+(G102*3)+(H102*4)","v":0},0,null,{"$f":"SUM(E102*1)+(F102*2)+(G102*3)+(H102*4)+IF(K102=\"Y\",2,IF(K102=\"N\",0))","v":0},null,{"$f":"IF(AND(L102>15,M102=\"Y\"),\"Yes\",\"No\")","v":"No"},null,0]
[1,null,null,null,null,null,null,null,0,0,null,0,null,"No",null,0]
[1,null,null,null,null,null,null,null,0,0,null,0,null,"No",null,0]
[1,null,null,null,null,null,null,null,0,0,null,0,null,"No",null,0]
[1,null,null,null,null,null,null,null,0,0,null,0,null,"No",null,0]
[1,null,null,null,null,null,null,null,0,0,null,0,null,"No",null,0]
[1,null,null,null,null,null,null,null,0,0,null,0,null,"No",null,0]
[1,null,null,null,null,null,null,null,0,0,null,0,null,"No",null,0]
[1,null,null,null,null,null,null,null,0,0,null,0,null,"No",null,0]
[1,null,null,null,null,null,null,null,0,0,null,0,null,"No",null,0]
[1,null,null,null,null,null,null,null,0,0,null,0,null,"No",null,0]
[1,null,null,null,null,null,null,null,0,0,null,0,null,"No",null,0]
[1,null,null,null,null,null,null,null,0,0,null,0,null,"No",null,0]
[1,null,null,null,null,null,null,null,0,0,null,0,null,"No",null,0]
[1,null,null,null,null,null,null,null,0,0,null,0,null,"No",null,0]
[1,null,null,null,null,null,null,null,0,0,null,0,null,"No",null,0]
[1,null,null,null,null,null,null,null,0,0,null,0,null,"No",null,0]
[1,null,null,null,null,null,null,null,0,0,null,0,null,"No",null,0]
[1,null,null,null,null,null,null,null,0,0,null,0,null,"No",null,0]
[1,null,null,null,null,null,null,null,0,0,null,0,null,"No",null,0]
[1,null,null,null,null,null,null,null,0,0,null,0,null,"No",null,0]
[1,null,null,null,null,null,null,null,0,0,null,0,null,"No",null,0]
[1,null,null,null,null,null,null,null,0,0,null,0,null,"No",null,0]
[1,null,null,null,null,null,null,null,0,0,null,0,null,"No",null,0]
[1,null,null,null,null,null,null,null,0,0,null,0,null,"No",null,0]
[1,null,null,null,null,null,null,null,0,0,null,0,null,"No",null,0]
[1,null,null,null,null,null,null,null,0,0,null,0,null,"No",null,0]
[1,null,null,null,null,null,null,null,0,0,null,0,null,"No",null,0]
[1,null,null,null,null,null,null,null,0,0,null,0,null,"No",null,0]
[1,null,null,null,null,null,null,null,0,0,null,0,null,"No",null,0]
[1,null,null,null,null,null,null,null,0,{"$f":"IF(I132<10,0,IF(I132<20,1,IF(I132<30,2,IF(I132<40,3,IF(I132<50,4,IF(I132<60,5,IF(I132>=60,6)))))))","v":0},null,0,null,"No",null,0]
[1,null,null,null,null,null,null,null,0,0,null,0,null,"No",null,0]
[1,null,null,null,null,null,null,null,0,0,null,0,null,"No",null,0]
[1,null,null,null,null,null,null,null,0,0,null,0,null,"No",null,0]
[1,null,null,null,null,null,null,null,0,0,null,0,null,"No",null,0]
[1,null,null,null,null,null,null,null,0,0,null,0,null,"No",null,0]
[1,null,null,null,null,null,null,null,0,0,null,0,null,"No",null,0]
[1,null,null,null,null,null,null,null,0,0,null,0,null,"No",null,0]
[1,null,null,null,null,null,null,null,0,0,null,0,null,"No",null,0]
[1,null,null,null,null,null,null,null,0,0,null,0,null,"No",null,0]
[1,null,null,null,null,null,null,null,0,0,null,0,null,"No",null,0]
[1,null,null,null,null,null,null,null,0,0,null,0,null,"No",null,0]
[1,null,null,null,null,null,null,null,0,0,null,0,null,"No",null,0]
[1,null,null,null,null,null,null,null,0,0,null,0,null,"No",null,0]
[1,null,null,null,null,null,null,null,0,0,null,0,null,"No",null,0]
[1,null,null,null,null,null,null,null,0,0,null,0,null,"No",null,0]
[1,null,null,null,null,null,null,null,0,0,null,0,null,"No",null,0]
[1,null,null,null,null,null,null,null,0,0,null,0,null,"No",null,0]
[1,null,null,null,null,null,null,null,0,0,null,0,null,"No",null,0]
[1,null,null,null,null,null,null,null,0,0,null,0,null,"No",null,0]
[1,null,null,null,null,null,null,null,0,0,null,0,null,"No",null,0]
[1,null,null,null,null,null,null,null,0,0,null,0,null,"No",null,0]
[1,null,null,null,null,null,null,null,0,0,null,0,null,"No",null,0]
[1,null,null,null,null,null,null,null,0,0,null,0,null,"No",null,0]
[1,null,null,null,null,null,null,null,0,0,null,0,null,"No",null,0]
[1,null,null,null,null,null,null,null,0,0,null,0,null,"No",null,0]
[1,null,null,null,null,null,null,null,0,0,null,0,null,"No",null,0]
[1,null,null,null,null,null,null,null,0,0,null,0,null,"No",null,0]
[1,null,null,null,null,null,null,null,0,0,null,0,null,"No",null,0]
[1,null,null,null,null,null,null,null,0,0,null,0,null,"No",null,0]
[1,null,null,null,null,null,null,null,0,0,null,0,null,"No",null,0]
[1,null,null,null,null,null,null,null,0,0,null,0,null,"No",null,0]
[1,null,null,null,null,null,null,null,0,0,null,0,null,"No",null,0]
[1,null,null,null,null,null,null,null,0,0,null,0,null,"No",null,0]
[1,null,null,null,null,null,null,null,{"$f":"SUM(E166*1)+(F166*2)+(G166*3)+(H166*4)","v":0},0,null,{"$f":"SUM(E166*1)+(F166*2)+(G166*3)+(H166*4)+IF(K166=\"Y\",2,IF(K166=\"N\",0))","v":0},null,{"$f":"IF(AND(L166>15,M166=\"Y\"),\"Yes\",\"No\")","v":"No"},null,0]
[1,null,null,null,null,null,null,null,0,0,null,0,null,"No",null,0]
[1,null,null,null,null,null,null,null,0,0,null,0,null,"No",null,0]
[1,null,null,null,null,null,null,null,0,0,null,0,null,"No",null,0]
[1,null,null,null,null,null,null,null,0,0,null,0,null,"No",null,0]
[1,null,null,null,null,null,null,null,0,0,null,0,null,"No",null,0]
[1,null,null,null,null,null,null,null,0,0,null,0,null,"No",null,0]
[1,null,null,null,null,null,null,null,0,0,null,0,null,"No",null,0]
[1,null,null,null,null,null,null,null,0,0,null,0,null,"No",null,0]
[1,null,null,null,null,null,null,null,0,0,null,0,null,"No",null,0]
[1,null,null,null,null,null,null,null,0,0,null,0,null,"No",null,0]
[1,null,null,null,null,null,null,null,0,0,null,0,null,"No",null,0]
[1,null,null,null,null,null,null,null,0,0,null,0,null,"No",null,0]
[1,null,null,null,null,null,null,null,0,0,null,0,null,"No",null,0]
[1,null,null,null,null,null,null,null,0,0,null,0,null,"No",null,0]
[1,null,null,null,null,null,null,null,0,0,null,0,null,"No",null,0]
[1,null,null,null,null,null,null,null,0,0,null,0,null,"No",null,0]
[1,null,null,null,null,null,null,null,0,0,null,0,null,"No",null,0]
[1,null,null,null,null,null,null,null,0,0,null,0,null,"No",null,0]
[1,null,null,null,null,null,null,null,0,0,null,0,null,"No",null,0]
[1,null,null,null,null,null,null,null,0,0,null,0,null,"No",null,0]
[1,null,null,null,null,null,null,null,0,0,null,0,null,"No",null,0]
[1,null,null,null,null,null,null,null,0,0,null,0,null,"No",null,0]
[1,null,null,null,null,null,null,null,0,0,null,0,null,"No",null,0]
[1,null,null,null,null,null,null,null,0,0,null,0,null,"No",null,0]
[1,null,null,null,null,null,null,null,0,0,null,0,null,"No",null,0]
[1,null,null,null,null,null,null,null,0,0,null,0,null,"No",null,0]
[1,null,null,null,null,null,null,null,0,0,null,0,null,"No",null,0]
[1,null,null,null,null,null,null,null,0,0,null,0,null,"No",null,0]
[1,null,null,null,null,null,null,null,0,0,null,0,null,"No",null,0]
[1,null,null,null,null,null,null,null,0,{"$f":"IF(I196<10,0,IF(I196<20,1,IF(I196<30,2,IF(I196<40,3,IF(I196<50,4,IF(I196<60,5,IF(I196>=60,6)))))))","v":0},null,0,null,"No",null,0]
[1,null,null,null,null,null,null,null,0,0,null,0,null,"No",null,0]
[1,null,null,null,null,null,null,null,0,0,null,0,null,"No",null,0]
[1,null,null,null,null,null,null,null,0,0,null,0,null,"No",null,0]
[1,null,null,null,null,null,null,null,0,0,null,0,null,"No",null,0]
[1,null,null,null,null,null,null,null,0,0,null,0,null,"No",null,0]
[1,null,null,null,null,null,null,null,0,0,null,0,null,"No",null,0]
[1,null,null,null,null,null,null,null,0,0,null,0,null,"No",null,0]
[1,null,null,null,null,null,null,null,0,0,null,0,null,"No",null,0]
[1,null,null,null,null,null,null,null,0,0,null,0,null,"No",null,0]
[1,null,null,null,null,null,null,null,0,0,null,0,null,"No",null,0]
[1,null,null,null,null,null,null,null,0,0,null,0,null,"No",null,0]
[1,null,null,null,null,null,null,null,0,0,null,0,null,"No",null,0]
[1,null,null,null,null,null,null,null,0,0,null,0,null,"No",null,0]
[1,null,null,null,null,null,null,null,0,0,null,0,null,"No",null,0]
[1,null,null,null,null,null,null,null,0,0,null,0,null,"No",null,0]
[1,null,null,null,null,null,null,null,0,0,null,0,null,"No",null,0]
[1,null,null,null,null,null,null,null,0,0,null,0,null,"No",null,0]
[1,null,null,null,null,null,null,null,0,0,null,0,null,"No",null,0]
[1,null,null,null,null,null,null,null,0,0,null,0,null,"No",null,0]
[1,null,null,null,null,null,null,null,0,0,null,0,null,"No",null,0]
[1,null,null,null,null,null,null,null,0,0,null,0,null,"No",null,0]
[1,null,null,null,null,null,null,null,0,0,null,0,null,"No",null,0]
[1,null,null,null,null,null,null,null,0,0,null,0,null,"No",null,0]
[1,null,null,null,null,null,null,null,0,0,null,0,null,"No",null,0]
[1,null,null,null,null,null,null,null,0,0,null,0,null,"No",null,0]
[1,null,null,null,null,null,null,null,0,0,null,0,null,"No",null,0]
[1,null,null,null,null,null,null,null,0,0,null,0,null,"No",null,0]
[1,null,null,null,null,null,null,null,0,0,null,0,null,"No",null,0]
[1,null,null,null,null,null,null,null,0,0,null,0,null,"No",null,0]
[1,null,null,null,null,null,null,null,0,0,null,0,null,"No",null,0]
[1,null,null,null,null,null,null,null,0,0,null,0,null,"No",null,0]
[1,null,null,null,null,null,null,null,0,0,null,0,null,"No",null,0]
[1,null,null,null,null,null,null,null,0,0,null,0,null,"No",null,0]
[1,null,null,null,null,null,null,null,{"$f":"SUM(E230*1)+(F230*2)+(G230*3)+(H230*4)","v":0},0,null,{"$f":"SUM(E230*1)+(F230*2)+(G230*3)+(H230*4)+IF(K230=\"Y\",2,IF(K230=\"N\",0))","v":0},null,{"$f":"IF(AND(L230>15,M230=\"Y\"),\"Yes\",\"No\")","v":"No"},null,0]
[1,null,null,null,null,null,null,null,0,0,null,0,null,"No",null,0]
[1,null,null,null,null,null,null,null,0,0,null,0,null,"No",null,0]
[1,null,null,null,null,null,null,null,0,0,null,0,null,"No",null,0]
[1,null,null,null,null,null,null,null,0,0,null,0,null,"No",null,0]
[1,null,null,null,null,null,null,null,0,0,null,0,null,"No",null,0]
[1,null,null,null,null,null,null,null,0,0,null,0,null,"No",null,0]
[1,null,null,null,null,null,null,null,0,0,null,0,null,"No",null,0]
[1,null,null,null,null,null,null,null,0,0,null,0,null,"No",null,0]
[1,null,null,null,null,null,null,null,0,0,null,0,null,"No",null,0]
[1,null,null,null,null,null,null,null,0,0,null,0,null,"No",null,0]
[1,null,null,null,null,null,null,null,0,0,null,0,null,"No",null,0]
[1,null,null,null,null,null,null,null,0,0,null,0,null,"No",null,0]
[1,null,null,null,null,null,null,null,0,0,null,0,null,"No",null,0]
[1,null,null,null,null,null,null,null,0,0,null,0,null,"No",null,0]
[1,null,null,null,null,null,null,null,0,0,null,0,null,"No",null,0]
[1,null,null,null,null,null,null,null,0,0,null,0,null,"No",null,0]
[1,null,null,null,null,null,null,null,0,0,null,0,null,"No",null,0]
[1,null,null,null,null,null,null,null,0,0,null,0,null,"No",null,0]
[1,null,null,null,null,null,null,null,0,0,null,0,null,"No",null,0]
[1,null,null,null,null,null,null,null,0,0,null,0,null,"No",null,0]
[1,null,null,null,null,null,null,null,0,0,null,0,null,"No",null,0]
[1,null,null,null,null,null,null,null,0,0,null,0,null,"No",null,0]
[1,null,null,null,null,null,null,null,0,0,null,0,null,"No",null,0]
[1,null,null,null,null,null,null,null,0,0,null,0,null,"No",null,0]
[1,null,null,null,null,null,null,null,0,0,null,0,null,"No",null,0]
[1,null,null,null,null,null,null,null,0,0,null,0,null,"No",null,0]
[1,null,null,null,null,null,null,null,0,0,null,0,null,"No",null,0]
[1,null,null,null,null,null,null,null,0,0,null,0,null,"No",null,0]
[1,null,null,null,null,null,null,null,0,0,null,0,null,"No",null,0]
[1,null,null,null,null,null,null,null,0,{"$f":"IF(I260<10,0,IF(I260<20,1,IF(I260<30,2,IF(I260<40,3,IF(I260<50,4,IF(I260<60,5,IF(I260>=60,6)))))))","v":0},null,0,null,"No",null,0]
[1,null,null,null,null,null,null,null,0,0,null,0,null,"No",null,0]
[1,null,null,null,null,null,null,null,0,0,null,0,null,"No",null,0]
[1,null,null,null,null,null,null,null,0,0,null,0,null,"No",null,0]
[1,null,null,null,null,null,null,null,0,0,null,0,null,"No",null,0]
[1,null,null,null,null,null,null,null,0,0,null,0,null,"No",null,0]
[1,null,null,null,null,null,null,null,0,0,null,0,null,"No",null,0]
[1,null,null,null,null,null,null,null,0,0,null,0,null,"No",null,0]
[1,null,null,null,null,null,null,null,0,0,null,0,null,"No",null,0]
[1,null,null,null,null,null,null,null,0,0,null,0,null,"No",null,0]
[1,null,null,null,null,null,null,null,0,0,null,0,null,"No",null,0]
[1,null,null,null,null,null,null,null,0,0,null,0,null,"No",null,0]
[1,null,null,null,null,null,null,null,0,0,null,0,null,"No",null,0]
[1,null,null,null,null,null,null,null,0,0,null,0,null,"No",null,0]
[1,null,null,null,null,null,null,null,0,0,null,0,null,"No",null,0]
[1,null,null,null,null,null,null,null,0,0,null,0,null,"No",null,0]
[1,null,null,null,null,null,null,null,0,0,null,0,null,"No",null,0]
[1,null,null,null,null,null,null,null,0,0,null,0,null,"No",null,0]
[1,null,null,null,null,null,null,null,0,0,null,0,null,"No",null,0]
[1,null,null,null,null,null,null,null,0,0,null,0,null,"No",null,0]
[1,null,null,null,null,null,null,null,0,0,null,0,null,"No",null,0]
[1,null,null,null,null,null,null,null,0,0,null,0,null,"No",null,0]
[1,null,null,null,null,null,null,null,0,0,null,0,null,"No",null,0]
[1,null,null,null,null,null,null,null,0,0,null,0,null,"No",null,0]
[1,null,null,null,null,null,null,null,0,0,null,0,null,"No",null,0]
[1,null,null,null,null,null,null,null,0,0,null,0,null,"No",null,0]
[1,null,null,null,null,null,null,null,0,0,null,0,null,"No",null,0]
[1,null,null,null,null,null,null,null,0,0,null,0,null,"No",null,0]
[1,null,null,null,null,null,null,null,0,0,null,0,null,"No",null,0]
[1,null,null,null,null,null,null,null,0,0,null,0,null,"No",null,0]
[1,null,null,null,null,null,null,null,0,0,null,0,null,"No",null,0]
[1,null,null,null,null,null,null,null,0,0,null,0,null,"No",null,0]
[1,null,null,null,null,null,null,null,0,0,null,0,null,"No",null,0]
[1,null,null,null,null,null,null,null,0,0,null,0,null,"No",null,0]
[1,null,null,null,null,null,null,null,{"$f":"SUM(E294*1)+(F294*2)+(G294*3)+(H294*4)","v":0},0,null,{"$f":"SUM(E294*1)+(F294*2)+(G294*3)+(H294*4)+IF(K294=\"Y\",2,IF(K294=\"N\",0))","v":0},null,{"$f":"IF(AND(L294>15,M294=\"Y\"),\"Yes\",\"No\")","v":"No"},null,0]
[1,null,null,null,null,null,null,null,0,0,null,0,null,"No",null,0]
[1,null,null,null,null,null,null,null,0,0,null,0,null,"No",null,0]
[1,null,null,null,null,null,null,null,0,0,null,0,null,"No",null,0]
[1,null,null,null,null,null,null,null,0,0,null,0,null,"No",null,0]
[1,null,null,null,null,null,null,null,0,0,null,0,null,"No",null,0]
[1,null,null,null,null,null,null,null,0,0,null,0,null,"No",null,0]

{"sheet":"Sheet2","index":2,"n_rows":0,"n_cols":0,"rows_kept":0,"cut":false,"hidden":true,"merged":[]}

{"sheet":"Sheet1","index":3,"n_rows":0,"n_cols":0,"rows_kept":0,"cut":false,"hidden":true,"merged":[]}

{"sheet":"Sort Sheet","index":4,"n_rows":298,"n_cols":16,"rows_kept":298,"cut":false,"hidden":false,"merged":[]}
["Level ","Handler (First and Last Name)","Dog","UDT #          (this is the UpDog Team # not the competitor #)","# of Catches in 1 point zone","# of Catches in 2 point zone","# of Catches in 3 point zone","# of Catches in 4 point zone","Total for Zones","Total Quads Cleared","Did the handler, dog and 1 disc end in the Sweet Spot, Y or N?","Total","Were all throws thrown as Rollers           Y or N?","High Roller","Division (not sorted on this column)","Misses"]
[1,"Frank Montgomery","Jagger","T2009152",3,3,3,3,{"$f":"SUM(E2*1)+(F2*2)+(G2*3)+(H2*4)","v":30},{"$f":"IF(I2<10,0,IF(I2<20,1,IF(I2<30,2,IF(I2<40,3,IF(I2<50,4,IF(I2<60,5,IF(I2>=60,6)))))))","v":3},"N",{"$f":"SUM(E2*1)+(F2*2)+(G2*3)+(H2*4)+IF(K2=\"Y\",2,IF(K2=\"N\",0))","v":30},"N",{"$f":"IF(AND(L2>15,M2=\"Y\"),\"Yes\",\"No\")","v":"No"},null,0]
[1,"Finn Proctor","Tango","T30544231",2,2,1,2,17,1,"Y",19,"N","No",null,7]
[1,"Sam Marion","GIR","T20779220",2,1,2,2,18,1,"N",18,"N","No",null,4]
[1,"Tracy Love","Rhythm","T10175199",1,1,2,2,17,1,"N",17,"N","No",null,1]
[1,"Lindsay Thompson","Moxie","T27199235",1,1,2,2,17,1,"N",17,"N","No",null,4]
[1,"Marisa Finan-Goode","Kite","T21413223",2,2,2,1,16,1,"N",16,"N","No",null,3]
[1,"Ashley Rogers","Oakley","T30961243",2,1,1,2,15,1,"N",15,"N","No",null,1]
[1,"Tammy Bonas","Tac","T2832181",2,1,1,2,15,1,"N",15,"N","No",null,2]
[1,"Tammy Bonas","Bo","T26447235",1,1,1,1,10,1,"Y",12,"N","No",null,1]
[1,"Tara Moriarty","Draak","T29481235",1,1,1,1,10,1,"Y",12,"Y","No",null,1]
[1,"Silver Alfriker","Bisha","T26466233",1,1,1,1,10,1,"N",10,"N","No",null,2]
[1,"Sam Marion","Josie","T10565197",0,1,0,1,6,0,"Y",8,"N","No",null,5]
[1,"Finn Proctor","Rumor","T29480237",1,1,1,0,6,0,"Y",8,"Y","No",null,3]
[1,"Lindsay Thompson","Banksy","T10071197",0,0,1,1,7,0,"N",7,"N","No",null,5]
[1,"Rachel Hoar","Nacho","T16237214",0,0,1,1,7,0,"N",7,"N","No",null,6]
[1,"Jeff Love","Rhapsody","T13736205",0,0,0,1,4,0,"N",4,"N","No",null,7]
[1,"Finn Proctor","Figment","T29479233",1,0,0,0,1,0,"N",1,"N","No",null,2]
[1,null,null,null,null,null,null,null,0,0,null,0,null,"No",null,0]
[1,null,null,null,null,null,null,null,0,0,null,0,null,"No",null,0]
[1,null,null,null,null,null,null,null,0,0,null,0,null,"No",null,0]
[1,null,null,null,null,null,null,null,0,0,null,0,null,"No",null,0]
[1,null,null,null,null,null,null,null,0,0,null,0,null,"No",null,0]
[1,null,null,null,null,null,null,null,0,0,null,0,null,"No",null,0]
[1,null,null,null,null,null,null,null,0,0,null,0,null,"No",null,0]
[1,null,null,null,null,null,null,null,0,0,null,0,null,"No",null,0]
[1,null,null,null,null,null,null,null,0,0,null,0,null,"No",null,0]
[1,null,null,null,null,null,null,null,0,0,null,0,null,"No",null,0]
[1,null,null,null,null,null,null,null,0,0,null,0,null,"No",null,0]
[1,null,null,null,null,null,null,null,0,0,null,0,null,"No",null,0]
[1,null,null,null,null,null,null,null,0,0,null,0,null,"No",null,0]
[1,null,null,null,null,null,null,null,0,0,null,0,null,"No",null,0]
[1,null,null,null,null,null,null,null,0,0,null,0,null,"No",null,0]
[1,null,null,null,null,null,null,null,0,0,null,0,null,"No",null,0]
[1,null,null,null,null,null,null,null,0,0,null,0,null,"No",null,0]
[1,null,null,null,null,null,null,null,0,0,null,0,null,"No",null,0]
[1,null,null,null,null,null,null,null,0,0,null,0,null,"No",null,0]
[1,null,null,null,null,null,null,null,0,0,null,0,null,"No",null,0]
[1,null,null,null,null,null,null,null,0,0,null,0,null,"No",null,0]
[1,null,null,null,null,null,null,null,0,0,null,0,null,"No",null,0]
[1,null,null,null,null,null,null,null,0,0,null,0,null,"No",null,0]
[1,null,null,null,null,null,null,null,0,0,null,0,null,"No",null,0]
[1,null,null,null,null,null,null,null,0,0,null,0,null,"No",null,0]
[1,null,null,null,null,null,null,null,0,0,null,0,null,"No",null,0]
[1,null,null,null,null,null,null,null,0,0,null,0,null,"No",null,0]
[1,null,null,null,null,null,null,null,0,0,null,0,null,"No",null,0]
[1,null,null,null,null,null,null,null,0,0,null,0,null,"No",null,0]
[1,null,null,null,null,null,null,null,0,0,null,0,null,"No",null,0]
[1,null,null,null,null,null,null,null,0,0,null,0,null,"No",null,0]
[1,null,null,null,null,null,null,null,0,0,null,0,null,"No",null,0]
[1,null,null,null,null,null,null,null,0,0,null,0,null,"No",null,0]
[1,null,null,null,null,null,null,null,0,0,null,0,null,"No",null,0]
[1,null,null,null,null,null,null,null,0,0,null,0,null,"No",null,0]
[1,null,null,null,null,null,null,null,0,0,null,0,null,"No",null,0]
[1,null,null,null,null,null,null,null,0,0,null,0,null,"No",null,0]
[1,null,null,null,null,null,null,null,0,0,null,0,null,"No",null,0]
[1,null,null,null,null,null,null,null,0,0,null,0,null,"No",null,0]
[1,null,null,null,null,null,null,null,0,0,null,0,null,"No",null,0]
[1,null,null,null,null,null,null,null,0,0,null,0,null,"No",null,0]
[1,null,null,null,null,null,null,null,0,0,null,0,null,"No",null,0]
[1,null,null,null,null,null,null,null,0,0,null,0,null,"No",null,0]
[1,null,null,null,null,null,null,null,0,0,null,0,null,"No",null,0]
[1,null,null,null,null,null,null,null,0,0,null,0,null,"No",null,0]
[1,null,null,null,null,null,null,null,0,0,null,0,null,"No",null,0]
[1,null,null,null,null,null,null,null,0,0,null,0,null,"No",null,0]
[1,null,null,null,null,null,null,null,{"$f":"SUM(E66*1)+(F66*2)+(G66*3)+(H66*4)","v":0},{"$f":"IF(I66<10,0,IF(I66<20,1,IF(I66<30,2,IF(I66<40,3,IF(I66<50,4,IF(I66<60,5,IF(I66>=60,6)))))))","v":0},null,{"$f":"SUM(E66*1)+(F66*2)+(G66*3)+(H66*4)+IF(K66=\"Y\",2,IF(K66=\"N\",0))","v":0},null,{"$f":"IF(AND(L66>15,M66=\"Y\"),\"Yes\",\"No\")","v":"No"},null,0]
[1,null,null,null,null,null,null,null,0,0,null,0,null,"No",null,0]
[1,null,null,null,null,null,null,null,0,0,null,0,null,"No",null,0]
[1,null,null,null,null,null,null,null,0,0,null,0,null,"No",null,0]
[1,null,null,null,null,null,null,null,0,0,null,0,null,"No",null,0]
[1,null,null,null,null,null,null,null,0,0,null,0,null,"No",null,0]
[1,null,null,null,null,null,null,null,0,0,null,0,null,"No",null,0]
[1,null,null,null,null,null,null,null,0,0,null,0,null,"No",null,0]
[1,null,null,null,null,null,null,null,0,0,null,0,null,"No",null,0]
[1,null,null,null,null,null,null,null,0,0,null,0,null,"No",null,0]
[1,null,null,null,null,null,null,null,0,0,null,0,null,"No",null,0]
[1,null,null,null,null,null,null,null,0,0,null,0,null,"No",null,0]
[1,null,null,null,null,null,null,null,0,0,null,0,null,"No",null,0]
[1,null,null,null,null,null,null,null,0,0,null,0,null,"No",null,0]
[1,null,null,null,null,null,null,null,0,0,null,0,null,"No",null,0]
[1,null,null,null,null,null,null,null,0,0,null,0,null,"No",null,0]
[1,null,null,null,null,null,null,null,0,0,null,0,null,"No",null,0]
[1,null,null,null,null,null,null,null,0,0,null,0,null,"No",null,0]
[1,null,null,null,null,null,null,null,0,0,null,0,null,"No",null,0]
[1,null,null,null,null,null,null,null,0,0,null,0,null,"No",null,0]
[1,null,null,null,null,null,null,null,0,0,null,0,null,"No",null,0]
[1,null,null,null,null,null,null,null,0,0,null,0,null,"No",null,0]
[1,null,null,null,null,null,null,null,0,0,null,0,null,"No",null,0]
[1,null,null,null,null,null,null,null,0,0,null,0,null,"No",null,0]
[1,null,null,null,null,null,null,null,0,0,null,0,null,"No",null,0]
[1,null,null,null,null,null,null,null,0,0,null,0,null,"No",null,0]
[1,null,null,null,null,null,null,null,0,0,null,0,null,"No",null,0]
[1,null,null,null,null,null,null,null,0,0,null,0,null,"No",null,0]
[1,null,null,null,null,null,null,null,0,0,null,0,null,"No",null,0]
[1,null,null,null,null,null,null,null,0,0,null,0,null,"No",null,0]
[1,null,null,null,null,null,null,null,0,0,null,0,null,"No",null,0]
[1,null,null,null,null,null,null,null,0,0,null,0,null,"No",null,0]
[1,null,null,null,null,null,null,null,0,0,null,0,null,"No",null,0]
[1,null,null,null,null,null,null,null,0,0,null,0,null,"No",null,0]
[1,null,null,null,null,null,null,null,0,0,null,0,null,"No",null,0]
[1,null,null,null,null,null,null,null,0,0,null,0,null,"No",null,0]
[1,null,null,null,null,null,null,null,0,0,null,0,null,"No",null,0]
[1,null,null,null,null,null,null,null,0,0,null,0,null,"No",null,0]
[1,null,null,null,null,null,null,null,0,0,null,0,null,"No",null,0]
[1,null,null,null,null,null,null,null,0,0,null,0,null,"No",null,0]
[1,null,null,null,null,null,null,null,0,0,null,0,null,"No",null,0]
[1,null,null,null,null,null,null,null,0,0,null,0,null,"No",null,0]
[1,null,null,null,null,null,null,null,0,0,null,0,null,"No",null,0]
[1,null,null,null,null,null,null,null,0,0,null,0,null,"No",null,0]
[1,null,null,null,null,null,null,null,0,0,null,0,null,"No",null,0]
[1,null,null,null,null,null,null,null,0,0,null,0,null,"No",null,0]
[1,null,null,null,null,null,null,null,0,0,null,0,null,"No",null,0]
[1,null,null,null,null,null,null,null,0,0,null,0,null,"No",null,0]
[1,null,null,null,null,null,null,null,0,0,null,0,null,"No",null,0]
[1,null,null,null,null,null,null,null,0,0,null,0,null,"No",null,0]
[1,null,null,null,null,null,null,null,0,0,null,0,null,"No",null,0]
[1,null,null,null,null,null,null,null,0,0,null,0,null,"No",null,0]
[1,null,null,null,null,null,null,null,0,0,null,0,null,"No",null,0]
[1,null,null,null,null,null,null,null,0,0,null,0,null,"No",null,0]
[1,null,null,null,null,null,null,null,0,0,null,0,null,"No",null,0]
[1,null,null,null,null,null,null,null,0,0,null,0,null,"No",null,0]
[1,null,null,null,null,null,null,null,0,0,null,0,null,"No",null,0]
[1,null,null,null,null,null,null,null,0,0,null,0,null,"No",null,0]
[1,null,null,null,null,null,null,null,0,0,null,0,null,"No",null,0]
[1,null,null,null,null,null,null,null,0,0,null,0,null,"No",null,0]
[1,null,null,null,null,null,null,null,0,0,null,0,null,"No",null,0]
[1,null,null,null,null,null,null,null,0,0,null,0,null,"No",null,0]
[1,null,null,null,null,null,null,null,0,0,null,0,null,"No",null,0]
[1,null,null,null,null,null,null,null,0,0,null,0,null,"No",null,0]
[1,null,null,null,null,null,null,null,{"$f":"SUM(E130*1)+(F130*2)+(G130*3)+(H130*4)","v":0},{"$f":"IF(I130<10,0,IF(I130<20,1,IF(I130<30,2,IF(I130<40,3,IF(I130<50,4,IF(I130<60,5,IF(I130>=60,6)))))))","v":0},null,{"$f":"SUM(E130*1)+(F130*2)+(G130*3)+(H130*4)+IF(K130=\"Y\",2,IF(K130=\"N\",0))","v":0},null,{"$f":"IF(AND(L130>15,M130=\"Y\"),\"Yes\",\"No\")","v":"No"},null,0]
[1,null,null,null,null,null,null,null,0,0,null,0,null,"No",null,0]
[1,null,null,null,null,null,null,null,0,0,null,0,null,"No",null,0]
[1,null,null,null,null,null,null,null,0,0,null,0,null,"No",null,0]
[1,null,null,null,null,null,null,null,0,0,null,0,null,"No",null,0]
[1,null,null,null,null,null,null,null,0,0,null,0,null,"No",null,0]
[1,null,null,null,null,null,null,null,0,0,null,0,null,"No",null,0]
[1,null,null,null,null,null,null,null,0,0,null,0,null,"No",null,0]
[1,null,null,null,null,null,null,null,0,0,null,0,null,"No",null,0]
[1,null,null,null,null,null,null,null,0,0,null,0,null,"No",null,0]
[1,null,null,null,null,null,null,null,0,0,null,0,null,"No",null,0]
[1,null,null,null,null,null,null,null,0,0,null,0,null,"No",null,0]
[1,null,null,null,null,null,null,null,0,0,null,0,null,"No",null,0]
[1,null,null,null,null,null,null,null,0,0,null,0,null,"No",null,0]
[1,null,null,null,null,null,null,null,0,0,null,0,null,"No",null,0]
[1,null,null,null,null,null,null,null,0,0,null,0,null,"No",null,0]
[1,null,null,null,null,null,null,null,0,0,null,0,null,"No",null,0]
[1,null,null,null,null,null,null,null,0,0,null,0,null,"No",null,0]
[1,null,null,null,null,null,null,null,0,0,null,0,null,"No",null,0]
[1,null,null,null,null,null,null,null,0,0,null,0,null,"No",null,0]
[1,null,null,null,null,null,null,null,0,0,null,0,null,"No",null,0]
[1,null,null,null,null,null,null,null,0,0,null,0,null,"No",null,0]
[1,null,null,null,null,null,null,null,0,0,null,0,null,"No",null,0]
[1,null,null,null,null,null,null,null,0,0,null,0,null,"No",null,0]
[1,null,null,null,null,null,null,null,0,0,null,0,null,"No",null,0]
[1,null,null,null,null,null,null,null,0,0,null,0,null,"No",null,0]
[1,null,null,null,null,null,null,null,0,0,null,0,null,"No",null,0]
[1,null,null,null,null,null,null,null,0,0,null,0,null,"No",null,0]
[1,null,null,null,null,null,null,null,0,0,null,0,null,"No",null,0]
[1,null,null,null,null,null,null,null,0,0,null,0,null,"No",null,0]
[1,null,null,null,null,null,null,null,0,0,null,0,null,"No",null,0]
[1,null,null,null,null,null,null,null,0,0,null,0,null,"No",null,0]
[1,null,null,null,null,null,null,null,0,0,null,0,null,"No",null,0]
[1,null,null,null,null,null,null,null,0,0,null,0,null,"No",null,0]
[1,null,null,null,null,null,null,null,0,0,null,0,null,"No",null,0]
[1,null,null,null,null,null,null,null,0,0,null,0,null,"No",null,0]
[1,null,null,null,null,null,null,null,0,0,null,0,null,"No",null,0]
[1,null,null,null,null,null,null,null,0,0,null,0,null,"No",null,0]
[1,null,null,null,null,null,null,null,0,0,null,0,null,"No",null,0]
[1,null,null,null,null,null,null,null,0,0,null,0,null,"No",null,0]
[1,null,null,null,null,null,null,null,0,0,null,0,null,"No",null,0]
[1,null,null,null,null,null,null,null,0,0,null,0,null,"No",null,0]
[1,null,null,null,null,null,null,null,0,0,null,0,null,"No",null,0]
[1,null,null,null,null,null,null,null,0,0,null,0,null,"No",null,0]
[1,null,null,null,null,null,null,null,0,0,null,0,null,"No",null,0]
[1,null,null,null,null,null,null,null,0,0,null,0,null,"No",null,0]
[1,null,null,null,null,null,null,null,0,0,null,0,null,"No",null,0]
[1,null,null,null,null,null,null,null,0,0,null,0,null,"No",null,0]
[1,null,null,null,null,null,null,null,0,0,null,0,null,"No",null,0]
[1,null,null,null,null,null,null,null,0,0,null,0,null,"No",null,0]
[1,null,null,null,null,null,null,null,0,0,null,0,null,"No",null,0]
[1,null,null,null,null,null,null,null,0,0,null,0,null,"No",null,0]
[1,null,null,null,null,null,null,null,0,0,null,0,null,"No",null,0]
[1,null,null,null,null,null,null,null,0,0,null,0,null,"No",null,0]
[1,null,null,null,null,null,null,null,0,0,null,0,null,"No",null,0]
[1,null,null,null,null,null,null,null,0,0,null,0,null,"No",null,0]
[1,null,null,null,null,null,null,null,0,0,null,0,null,"No",null,0]
[1,null,null,null,null,null,null,null,0,0,null,0,null,"No",null,0]
[1,null,null,null,null,null,null,null,0,0,null,0,null,"No",null,0]
[1,null,null,null,null,null,null,null,0,0,null,0,null,"No",null,0]
[1,null,null,null,null,null,null,null,0,0,null,0,null,"No",null,0]
[1,null,null,null,null,null,null,null,0,0,null,0,null,"No",null,0]
[1,null,null,null,null,null,null,null,0,0,null,0,null,"No",null,0]
[1,null,null,null,null,null,null,null,0,0,null,0,null,"No",null,0]
[1,null,null,null,null,null,null,null,{"$f":"SUM(E194*1)+(F194*2)+(G194*3)+(H194*4)","v":0},{"$f":"IF(I194<10,0,IF(I194<20,1,IF(I194<30,2,IF(I194<40,3,IF(I194<50,4,IF(I194<60,5,IF(I194>=60,6)))))))","v":0},null,{"$f":"SUM(E194*1)+(F194*2)+(G194*3)+(H194*4)+IF(K194=\"Y\",2,IF(K194=\"N\",0))","v":0},null,{"$f":"IF(AND(L194>15,M194=\"Y\"),\"Yes\",\"No\")","v":"No"},null,0]
[1,null,null,null,null,null,null,null,0,0,null,0,null,"No",null,0]
[1,null,null,null,null,null,null,null,0,0,null,0,null,"No",null,0]
[1,null,null,null,null,null,null,null,0,0,null,0,null,"No",null,0]
[1,null,null,null,null,null,null,null,0,0,null,0,null,"No",null,0]
[1,null,null,null,null,null,null,null,0,0,null,0,null,"No",null,0]
[1,null,null,null,null,null,null,null,0,0,null,0,null,"No",null,0]
[1,null,null,null,null,null,null,null,0,0,null,0,null,"No",null,0]
[1,null,null,null,null,null,null,null,0,0,null,0,null,"No",null,0]
[1,null,null,null,null,null,null,null,0,0,null,0,null,"No",null,0]
[1,null,null,null,null,null,null,null,0,0,null,0,null,"No",null,0]
[1,null,null,null,null,null,null,null,0,0,null,0,null,"No",null,0]
[1,null,null,null,null,null,null,null,0,0,null,0,null,"No",null,0]
[1,null,null,null,null,null,null,null,0,0,null,0,null,"No",null,0]
[1,null,null,null,null,null,null,null,0,0,null,0,null,"No",null,0]
[1,null,null,null,null,null,null,null,0,0,null,0,null,"No",null,0]
[1,null,null,null,null,null,null,null,0,0,null,0,null,"No",null,0]
[1,null,null,null,null,null,null,null,0,0,null,0,null,"No",null,0]
[1,null,null,null,null,null,null,null,0,0,null,0,null,"No",null,0]
[1,null,null,null,null,null,null,null,0,0,null,0,null,"No",null,0]
[1,null,null,null,null,null,null,null,0,0,null,0,null,"No",null,0]
[1,null,null,null,null,null,null,null,0,0,null,0,null,"No",null,0]
[1,null,null,null,null,null,null,null,0,0,null,0,null,"No",null,0]
[1,null,null,null,null,null,null,null,0,0,null,0,null,"No",null,0]
[1,null,null,null,null,null,null,null,0,0,null,0,null,"No",null,0]
[1,null,null,null,null,null,null,null,0,0,null,0,null,"No",null,0]
[1,null,null,null,null,null,null,null,0,0,null,0,null,"No",null,0]
[1,null,null,null,null,null,null,null,0,0,null,0,null,"No",null,0]
[1,null,null,null,null,null,null,null,0,0,null,0,null,"No",null,0]
[1,null,null,null,null,null,null,null,0,0,null,0,null,"No",null,0]
[1,null,null,null,null,null,null,null,0,0,null,0,null,"No",null,0]
[1,null,null,null,null,null,null,null,0,0,null,0,null,"No",null,0]
[1,null,null,null,null,null,null,null,0,0,null,0,null,"No",null,0]
[1,null,null,null,null,null,null,null,0,0,null,0,null,"No",null,0]
[1,null,null,null,null,null,null,null,0,0,null,0,null,"No",null,0]
[1,null,null,null,null,null,null,null,0,0,null,0,null,"No",null,0]
[1,null,null,null,null,null,null,null,0,0,null,0,null,"No",null,0]
[1,null,null,null,null,null,null,null,0,0,null,0,null,"No",null,0]
[1,null,null,null,null,null,null,null,0,0,null,0,null,"No",null,0]
[1,null,null,null,null,null,null,null,0,0,null,0,null,"No",null,0]
[1,null,null,null,null,null,null,null,0,0,null,0,null,"No",null,0]
[1,null,null,null,null,null,null,null,0,0,null,0,null,"No",null,0]
[1,null,null,null,null,null,null,null,0,0,null,0,null,"No",null,0]
[1,null,null,null,null,null,null,null,0,0,null,0,null,"No",null,0]
[1,null,null,null,null,null,null,null,0,0,null,0,null,"No",null,0]
[1,null,null,null,null,null,null,null,0,0,null,0,null,"No",null,0]
[1,null,null,null,null,null,null,null,0,0,null,0,null,"No",null,0]
[1,null,null,null,null,null,null,null,0,0,null,0,null,"No",null,0]
[1,null,null,null,null,null,null,null,0,0,null,0,null,"No",null,0]
[1,null,null,null,null,null,null,null,0,0,null,0,null,"No",null,0]
[1,null,null,null,null,null,null,null,0,0,null,0,null,"No",null,0]
[1,null,null,null,null,null,null,null,0,0,null,0,null,"No",null,0]
[1,null,null,null,null,null,null,null,0,0,null,0,null,"No",null,0]
[1,null,null,null,null,null,null,null,0,0,null,0,null,"No",null,0]
[1,null,null,null,null,null,null,null,0,0,null,0,null,"No",null,0]
[1,null,null,null,null,null,null,null,0,0,null,0,null,"No",null,0]
[1,null,null,null,null,null,null,null,0,0,null,0,null,"No",null,0]
[1,null,null,null,null,null,null,null,0,0,null,0,null,"No",null,0]
[1,null,null,null,null,null,null,null,0,0,null,0,null,"No",null,0]
[1,null,null,null,null,null,null,null,0,0,null,0,null,"No",null,0]
[1,null,null,null,null,null,null,null,0,0,null,0,null,"No",null,0]
[1,null,null,null,null,null,null,null,0,0,null,0,null,"No",null,0]
[1,null,null,null,null,null,null,null,0,0,null,0,null,"No",null,0]
[1,null,null,null,null,null,null,null,0,0,null,0,null,"No",null,0]
[1,null,null,null,null,null,null,null,{"$f":"SUM(E258*1)+(F258*2)+(G258*3)+(H258*4)","v":0},{"$f":"IF(I258<10,0,IF(I258<20,1,IF(I258<30,2,IF(I258<40,3,IF(I258<50,4,IF(I258<60,5,IF(I258>=60,6)))))))","v":0},null,{"$f":"SUM(E258*1)+(F258*2)+(G258*3)+(H258*4)+IF(K258=\"Y\",2,IF(K258=\"N\",0))","v":0},null,{"$f":"IF(AND(L258>15,M258=\"Y\"),\"Yes\",\"No\")","v":"No"},null,0]
[1,null,null,null,null,null,null,null,0,0,null,0,null,"No",null,0]
[1,null,null,null,null,null,null,null,0,0,null,0,null,"No",null,0]
[1,null,null,null,null,null,null,null,0,0,null,0,null,"No",null,0]
[1,null,null,null,null,null,null,null,0,0,null,0,null,"No",null,0]
[1,null,null,null,null,null,null,null,0,0,null,0,null,"No",null,0]
[1,null,null,null,null,null,null,null,0,0,null,0,null,"No",null,0]
[1,null,null,null,null,null,null,null,0,0,null,0,null,"No",null,0]
[1,null,null,null,null,null,null,null,0,0,null,0,null,"No",null,0]
[1,null,null,null,null,null,null,null,0,0,null,0,null,"No",null,0]
[1,null,null,null,null,null,null,null,0,0,null,0,null,"No",null,0]
[1,null,null,null,null,null,null,null,0,0,null,0,null,"No",null,0]
[1,null,null,null,null,null,null,null,0,0,null,0,null,"No",null,0]
[1,null,null,null,null,null,null,null,0,0,null,0,null,"No",null,0]
[1,null,null,null,null,null,null,null,0,0,null,0,null,"No",null,0]
[1,null,null,null,null,null,null,null,0,0,null,0,null,"No",null,0]
[1,null,null,null,null,null,null,null,0,0,null,0,null,"No",null,0]
[1,null,null,null,null,null,null,null,0,0,null,0,null,"No",null,0]
[1,null,null,null,null,null,null,null,0,0,null,0,null,"No",null,0]
[1,null,null,null,null,null,null,null,0,0,null,0,null,"No",null,0]
[1,null,null,null,null,null,null,null,0,0,null,0,null,"No",null,0]
[1,null,null,null,null,null,null,null,0,0,null,0,null,"No",null,0]
[1,null,null,null,null,null,null,null,0,0,null,0,null,"No",null,0]
[1,null,null,null,null,null,null,null,0,0,null,0,null,"No",null,0]
[1,null,null,null,null,null,null,null,0,0,null,0,null,"No",null,0]
[1,null,null,null,null,null,null,null,0,0,null,0,null,"No",null,0]
[1,null,null,null,null,null,null,null,0,0,null,0,null,"No",null,0]
[1,null,null,null,null,null,null,null,0,0,null,0,null,"No",null,0]
[1,null,null,null,null,null,null,null,0,0,null,0,null,"No",null,0]
[1,null,null,null,null,null,null,null,0,0,null,0,null,"No",null,0]
[1,null,null,null,null,null,null,null,0,0,null,0,null,"No",null,0]
[1,null,null,null,null,null,null,null,0,0,null,0,null,"No",null,0]
[1,null,null,null,null,null,null,null,0,0,null,0,null,"No",null,0]
[1,null,null,null,null,null,null,null,0,0,null,0,null,"No",null,0]
[1,null,null,null,null,null,null,null,0,0,null,0,null,"No",null,0]
[1,null,null,null,null,null,null,null,0,0,null,0,null,"No",null,0]
[1,null,null,null,null,null,null,null,0,0,null,0,null,"No",null,0]
[1,null,null,null,null,null,null,null,0,0,null,0,null,"No",null,0]
[1,null,null,null,null,null,null,null,0,0,null,0,null,"No",null,0]
[1,null,null,null,null,null,null,null,0,0,null,0,null,"No",null,0]
[1,null,null,null,null,null,null,null,0,0,null,0,null,"No",null,0]

{"sheet":"Sort Sheet by Div","index":5,"n_rows":1,"n_cols":16,"rows_kept":1,"cut":false,"hidden":false,"merged":[]}
["Level ","Handler (First and Last Name)","Dog","UDT #          (this is the UpDog Team # not the competitor #)","# of Catches in 1 point zone","# of Catches in 2 point zone","# of Catches in 3 point zone","# of Catches in 4 point zone","Total for Zones","Total Quads Cleared","Did the handler, dog and 1 disc end in the Sweet Spot, Y or N?","Total","Were all throws thrown as Rollers           Y or N?","High Roller","Division","Misses"]

{"sheet":"Sheet3","index":6,"n_rows":50,"n_cols":3,"rows_kept":50,"cut":false,"hidden":true,"merged":[]}
[null,"MINI",0]
["Y","MIDI",1]
["N","MAXI",2]
[null,"MEGA",3]
[null,null,4]
[null,null,5]
[null,null,6]
[null,null,7]
[null,null,8]
[null,null,9]
[null,null,10]
[null,null,11]
[null,null,12]
[null,null,13]
[null,null,14]
[null,null,15]
[null,null,16]
[null,null,17]
[null,null,18]
[null,null,19]
[null,null,20]
[null,null,21]
[null,null,22]
[null,null,23]
[null,null,24]
[null,null,25]
[null,null,26]
[null,null,27]
[null,null,28]
[null,null,29]
[null,null,30]
[null,null,31]
[null,null,32]
[null,null,33]
[null,null,34]
[null,null,35]
[null,null,36]
[null,null,37]
[null,null,38]
[null,null,39]
[null,null,40]
[null,null,41]
[null,null,42]
[null,null,43]
[null,null,44]
[null,null,45]
[null,null,46]
[null,null,47]
[null,null,48]
[null,null,49]